Cogmind - Beta 14 @@@ ROGUE MODE // 2024.10.13 @ 22:42:01 Player: Alzonario Result: Destroyed by B-86 Titan with Matter Neutralizer Performance ------------- Evolutions (6) 3000 Regions Visited (16) 3200 Robots Destroyed (37) 185 Value Destroyed (1060) 1060 Prototype IDs (39) 780 Alien Tech Used (0) 0 Bonus (2412) 2412 TOTAL SCORE: 10637 Bonus ------- High Alert Combat Kills 36 Follower Combat Kills 540 Aligned with FarCom 300 Met Warlord at Base 500 MAIN.C Attacked Warlord 500 Warlord Defense Kills 536 Cogmind --------- Core Integrity 0/1150 Matter 300/300 Energy 96/100 System Corruption 2% Temperature Cool (18) Movement Treading (170) Location -4/Warlord Parts ------- > --- POWER (2) -------- (None) > --- PROPULSION (5) --- Armored Medium Treads > --- UTILITY (7) ------ Improved Melee Analysis Suite Advanced Melee Analysis Suite Target Analyzer Improved Target Analyzer > --- WEAPON (5) ------- Makeshift Hammer Vortex Lance > --- INVENTORY (5) ---- Light Quantum Reactor Flexi-carbon Leg Energy Well (350) System Restoration Module Peak State ------------ > --- POWER ------------ Cooled Deuterium Engine Improved Fusion Compressor > --- PROPULSION ------- Xenon Bombardment Thruster Cooled VTOL Module Cooled VTOL Module Cooled VTOL Module Cooled VTOL Module > --- UTILITY ---------- Experimental Heat Sink Advanced Weight Redist. System Improved Melee Analysis Suite Improved Melee Analysis Suite Target Analyzer Microactuators Improved Weapon Shielding > --- WEAPON ----------- Scythe Greatsword Longsword +1 Lance > --- INVENTORY -------- Cooled Deuterium Engine Energy Well System Restoration Module [Rating: 90] Favorites ----------- Power Cooled Deuterium Engine Engine Cooled Deuterium Engine Power Core Improved Fusion Compressor Reactor Light Antimatter Reactor Propulsion Cooled VTOL Module Treads Light Treads Flight Unit Cooled VTOL Module Utility Improved Melee Analysis Suite Device Advanced Weight Redist. System Processor Improved Melee Analysis Suite Hackware Hacking Suite Protection Improved Weapon Shielding Weapon Longsword +1 Energy Gun Field Laser Ballistic Gun Light Assault Rifle Launcher Grenade Launcher Impact Weapon Power Maul Slashing Weapon Longsword +1 Piercing Weapon Lance Build | -11 -10 -10 -9 -9 -9 -8 -8 -7 -7 -7 -6 -5 -4 -4 -4 -4 ------- Run | Yrd Mat Min Mat Min Exi Min Mat Fac Was Fac Fac Fac Fac Upp Upp War Slots Evolved 12 | . . . 2 . . . 2 2 . . 2 2 2 . . . Power 1 | . . . . . . . . . . . 1 . . . . . Propulsion 3 | . . . . . . . 1 1 . . . 1 . . . . Utility 5 | . . . 2 . . . 1 1 . . . . 1 . . . Weapon 3 | . . . . . . . . . . . 1 1 1 . . . Parts Attached 106 | 3 2 11 14 . 3 1 11 20 . 1 11 4 6 3 2 14 Power 16 | . . 3 3 . . . 1 2 . . 2 . 2 1 1 1 Engine 10 | . . 3 3 . . . 1 1 . . 1 . 1 . . . Core 5 | . . . . . . . . 1 . . 1 . 1 1 1 . Reactor 1 | . . . . . . . . . . . . . . . . 1 Propulsion 31 | 2 . 4 4 . . . 6 6 . 1 1 1 1 . 1 4 Treads 7 | 2 . . 1 . . . . . . . . . . . . 4 Leg . | . . . . . . . . . . . . . . . . . Wheel . | . . . . . . . . . . . . . . . . . Hover . | . . . . . . . . . . . . . . . . . Flight 24 | . . 4 3 . . . 6 6 . 1 1 1 1 . 1 . Utility 33 | . 2 . 5 . 2 1 4 8 . . 4 . 2 1 . 4 Device 19 | . . . 2 . 1 1 3 6 . . 2 . 2 1 . 1 Storage . | . . . . . . . . . . . . . . . . . Processor 11 | . 2 . 3 . 1 . . 2 . . 1 . . . . 2 Hackware 1 | . . . . . . . 1 . . . . . . . . . Protection 2 | . . . . . . . . . . . 1 . . . . 1 Artifact . | . . . . . . . . . . . . . . . . . Weapon 26 | 1 . 4 2 . 1 . . 4 . . 4 3 1 1 . 5 Energy Gun 4 | 1 . 1 2 . . . . . . . . . . . . . Energy Cannon . | . . . . . . . . . . . . . . . . . Ballistic Gun 2 | . . 2 . . . . . . . . . . . . . . Ballistic Cannon . | . . . . . . . . . . . . . . . . . Launcher 1 | . . 1 . . . . . . . . . . . . . . Special Weapon . | . . . . . . . . . . . . . . . . . Impact Weapon 5 | . . . . . . . . 2 . . . . . 1 . 2 Slashing Weapon 11 | . . . . . 1 . . 2 . . 4 2 1 . . 1 Piercing Weapon 3 | . . . . . . . . . . . . 1 . . . 2 Special Melee Weapon . | . . . . . . . . . . . . . . . . . Unidentified Prototypes 8 | . . . 1 . 2 . . 2 . . . . 1 . . 2 Parts Lost 46 | . . 6 4 . . . 7 . . . 1 . 4 4 2 18 Power 6 | . . 1 . . . . 2 . . . . . . . 1 2 Propulsion 19 | . . 3 3 . . . 4 . . . . . 1 1 . 7 Utility 11 | . . . 1 . . . 1 . . . 1 . 2 2 . 4 Weapon 10 | . . 2 . . . . . . . . . . 1 1 1 5 Highest Loss Streak 14 | . . 4 2 . . . 6 . . . 1 . 2 3 1 14 To Critical Strikes . | . . . . . . . . . . . . . . . . . Average Slot Usage (%) 81 | . 65 58 79 88 81 77 69 93 92 92 89 92 85 70 63 75 Engine 6 | . . . 3 11 11 11 3 5 7 7 12 5 1 5 . 5 Flight 21 | . . 10 15 11 11 11 12 29 30 30 26 29 25 18 19 18 Device 14 | . . . 11 11 10 11 18 17 23 23 16 11 18 17 10 8 Processor 19 | . 22 28 33 33 33 33 18 19 15 15 13 17 15 15 15 17 Hackware 2 | . . . . . . . 8 7 7 7 . . . . . . Protection 1 | . . . . . . . . . . . 5 5 1 . . . Energy Gun 2 | . 14 5 15 22 10 . . . . . . . . . . . Impact Weapon 2 | . . . . . . . . 3 . . . . . . 5 9 Slashing Weapon 6 | . . . . . 5 11 9 6 7 7 12 14 11 5 5 5 Piercing Weapon 1 | . . . . . . . . . . . . . 5 5 2 5 Peak Build Rating 90 | 3 7 9 24 18 20 20 31 57 53 54 68 75 90 74 59 84 Average Rating 50 | 1 6 6 21 18 18 19 24 49 53 53 64 71 82 64 54 65 On Entrance 35 | . 3 7 8 18 18 19 20 29 53 53 54 67 73 68 62 53 Naked Turns . | . . . . . . . . . . . . . . . . . Heaviest Build 39 | 2 2 3 9 9 9 6 8 23 22 22 39 31 35 28 15 36 Greatest Support 54 | 3 3 8 14 10 10 13 16 35 25 30 37 43 43 30 24 54 Greatest Overweight (x) 9 | . . . 1 . . . 2 7 . . 1 . . 1 2 9 Average Overweight (x) . | . . . . . . . . . . . . . . . . . Largest Inventory Capacity 5 | 5 5 5 5 5 5 5 5 5 5 5 5 5 5 5 5 5 Average Capacity 5 | 5 5 5 5 5 5 5 5 5 5 5 5 5 5 5 5 5 Most Carried 5 | 4 3 5 5 4 5 2 4 5 5 5 5 5 5 4 5 5 Average Carried 3 | 1 2 4 4 3 2 1 1 3 5 5 3 2 4 2 3 3 Final Capacity 5 | 5 5 5 5 5 5 5 5 5 5 5 5 5 5 5 5 5 Final Carried 5 | 1 3 5 3 4 1 2 3 5 5 5 3 5 4 3 3 4 Class Distribution -------------------- 35% | Sprinter 28% | Mutant 14% | Gladiator 12% | Machinist-Sprinter 7% | Machinist-Gladiator Dominant Class ---------------- Mutant | -10/Materials Mutant | -10/Mines Mutant | -9/Materials Mutant | -9/Mines Mutant | -9/Exiles Mutant | -8/Mines Mutant | -8/Materials Sprinter | -7/Factory Sprinter | -7/Waste Sprinter | -7/Factory Machinist-Gladiator | -6/Factory Machinist-Sprinter | -5/Factory Machinist-Sprinter | -4/Factory Sprinter | -4/Upper Caves Sprinter | -4/Upper Caves Sprinter | -4/Warlord Resources | -11 -10 -10 -9 -9 -9 -8 -8 -7 -7 -7 -6 -5 -4 -4 -4 -4 ----------- Run | Yrd Mat Min Mat Min Exi Min Mat Fac Was Fac Fac Fac Fac Upp Upp War Matter Collected 1369 | 197 . 61 118 . . 91 118 108 . 122 85 . 49 279 21 120 Remotely . | . . . . . . . . . . . . . . . . . Salvage Created 1182 | . . 51 106 . . . 44 146 . 47 76 . 102 332 92 186 Parts 57 | . . 5 9 . . . 4 7 . 3 10 . 5 7 6 1 Haulers Intercepted . | . . . . . . . . . . . . . . . . . Recyclers Shooed . | . . . . . . . . . . . . . . . . . Parts Field Recycled . | . . . . . . . . . . . . . . . . . Retrieved Matter . | . . . . . . . . . . . . . . . . . Parts Self-Destructed 5 | . . . . . . . . . . . . . . . 5 . Prevented . | . . . . . . . . . . . . . . . . . Kills | -11 -10 -10 -9 -9 -9 -8 -8 -7 -7 -7 -6 -5 -4 -4 -4 -4 ------- Run | Yrd Mat Min Mat Min Exi Min Mat Fac Was Fac Fac Fac Fac Upp Upp War Combat Hostiles Destroyed 31 | . . 3 7 . . . 3 3 . 1 3 . 2 1 4 4 Melee 19 | . . . . . . . 3 3 . 1 3 . 2 1 4 2 Guns 9 | . . 2 7 . . . . . . . . . . . . . AOE 1 | . . 1 . . . . . . . . . . . . . . Classes Destroyed 10 | . . 1 . . . . . 2 . . 2 . 2 2 . 1 Worker 2 | . . . . . . . . . . . . . 2 . . . Builder 1 | . . . . . . . . . . . . . 1 . . . Swarmer 19 | . . 3 7 . . . 3 . . . . . 2 . 4 . Cutter 2 | . . . . . . . . . . . 2 . . . . . Grunt 3 | . . . . . . . . 2 . . . . . . . 1 Brawler 1 | . . . . . . . . . . . . . . . . 1 Protector 1 | . . . . . . . . . . . . . . . . 1 Hunter 2 | . . . . . . . . 1 . 1 . . . . . . Programmer 2 | . . . . . . . . . . . 1 . . . . 1 Savage 3 | . . . . . . . . . . . . . . 3 . . Mutant 1 | . . . . . . . . . . . . . . 1 . . Best Kill Streak 4 | . . 3 4 . . . 1 2 . 1 2 . 2 1 4 2 Combat Bots Only 4 | . . 3 4 . . . 1 2 . 1 2 . 2 1 4 2 Max Kills in Single Turn 2 | . . 1 2 . . . 1 1 . 1 1 . 1 1 1 1 Gunslinging 1 | . . . 1 . . . . . . . . . . . . . Exploded 1 | . . 1 . . . . . . . . . . . . . . Melee 1 | . . . . . . . 1 1 . 1 1 . 1 1 1 1 Uniques/NPCs Destroyed . | . . . . . . . . . . . . . . . . . Combat | -11 -10 -10 -9 -9 -9 -8 -8 -7 -7 -7 -6 -5 -4 -4 -4 -4 -------- Run | Yrd Mat Min Mat Min Exi Min Mat Fac Was Fac Fac Fac Fac Upp Upp War Hostile Shots Fired 536 | . 4 14 55 2 . 2 97 6 . 15 12 11 46 53 24 195 Missed 210 | . 1 7 18 2 . . 36 3 . 11 7 9 15 26 9 66 Damage Taken 6212 | . 22 255 297 . . 36 842 74 . 155 197 32 579 442 229 3052 Core 2029 | . 6 91 120 . . . 545 43 . 39 18 . 99 90 140 838 Absorbed by Shields 75 | . . . . . . . . . . . . . 75 . . . Redirected to Shielding 102 | . . . . . . . . . . . 26 9 67 . . . Regen/Repaired (Parts) 209 | . . . . . . . . 9 . . . 99 20 . . 81 Core Remaining (%) 73 | 100 . 61 . . . 70 . . . 88 97 100 . . . . Volleys Fired 22 | . . 9 13 . . . . . . . . . . . . . Largest 2 | . . 1 2 . . . . . . . . . . . . . Hottest 126 | . . 40 126 . . . . . . . . . . . . . Shots Fired 27 | . . 9 18 . . . . . . . . . . . . . Gun 25 | . . 7 18 . . . . . . . . . . . . . Cannon . | . . . . . . . . . . . . . . . . . Launcher 2 | . . 2 . . . . . . . . . . . . . . Special . | . . . . . . . . . . . . . . . . . Kinetic . | . . . . . . . . . . . . . . . . . Thermal 18 | . . . 18 . . . . . . . . . . . . . Explosive 2 | . . 2 . . . . . . . . . . . . . . Electromagnetic 7 | . . 7 . . . . . . . . . . . . . . Robot Hit Streak 7 | . . 4 7 . . . . . . . . . . . . . Robot Miss Streak 3 | . . 3 3 . . . . . . . . . . . . . Penetration Max . | . . . . . . . . . . . . . . . . . Secondary Targets 1 | . . . 1 . . . . . . . . . . . . . Max Gunslinging Chain 1 | . . . 1 . . . . . . . . . . . . . Shots Hit Robots 89 | . . 6 10 . . . 6 5 . 2 5 . 15 22 7 11 Core Hits 41 | . . 6 7 . . . 2 2 . 1 3 . 4 9 4 3 Critical Kills 1 | . . . . . . . . . . . . . . . . 1 Critical Parts Destroyed 2 | . . . . . . . . . . . . . . . . 2 Critical Strikes 15 | . . . . . . . 2 1 . . 1 . 1 7 . 3 Smash 3 | . . . . . . . . . . . . . . . . 3 Sever 11 | . . . . . . . 2 1 . . 1 . . 7 . . Impale 1 | . . . . . . . . . . . . . 1 . . . Melee Attacks 122 | . . . . . . . 32 5 . 4 5 . 23 25 11 17 Impact 10 | . . . . . . . . . . . . . . 1 . 9 Slashing 92 | . . . . . . . 32 5 . 4 5 . 19 18 9 . Piercing 12 | . . . . . . . . . . . . . 4 6 2 . Entropic 8 | . . . . . . . . . . . . . . . . 8 Sneak Attacks 22 | . . . . . . . . 2 . . . . 4 16 . . Combat Hostiles 3 | . . . . . . . . 2 . . . . 1 . . . Follow-up Attacks 15 | . . . . . . . . . . . . . 4 6 2 3 Damage Inflicted 4181 | . . 81 188 . . . 264 396 . 125 275 . 892 1093 238 629 Guns 233 | . . 45 188 . . . . . . . . . . . . . Cannons . | . . . . . . . . . . . . . . . . . Explosions 36 | . . 36 . . . . . . . . . . . . . . Melee 3912 | . . . . . . . 264 396 . 125 275 . 892 1093 238 629 Ramming . | . . . . . . . . . . . . . . . . . Kinetic . | . . . . . . . . . . . . . . . . . Thermal 209 | . . 21 188 . . . . . . . . . . . . . Explosive 15 | . . 15 . . . . . . . . . . . . . . Electromagnetic 45 | . . 45 . . . . . . . . . . . . . . Impact 417 | . . . . . . . . . . . . . . 90 . 327 Slashing 2756 | . . . . . . . 264 396 . 125 275 . 816 720 160 . Piercing 437 | . . . . . . . . . . . . . 76 283 78 . Entropic 302 | . . . . . . . . . . . . . . . . 302 Highest Corruption 2 | . . . . . . . . . . . . . . . . 2 Average Corruption 1 | . . . . . . . . . . . . . . . . 1 Corruption Purged . | . . . . . . . . . . . . . . . . . Corruption Blocked . | . . . . . . . . . . . . . . . . . Effects 1 | . . . . . . . . . . . . . . . . 1 Heat Flow Errors 1 | . . . . . . . . . . . . . . . . 1 Overload Shots . | . . . . . . . . . . . . . . . . . Overflow Damage 482 | . . 13 . . . . 25 59 . . 26 . 234 . 15 110 Projectiles . | . . . . . . . . . . . . . . . . . Explosions 13 | . . 13 . . . . . . . . . . . . . . Melee 469 | . . . . . . . 25 59 . . 26 . 234 . 15 110 Knockbacks 3 | . . . . . . . . . . . . . . . . 3 Impact 3 | . . . . . . . . . . . . . . . . 3 Kinetic . | . . . . . . . . . . . . . . . . . Secondary . | . . . . . . . . . . . . . . . . . Self-Inflicted Damage 29 | . . 29 . . . . . . . . . . . . . . Shots 1 | . . 1 . . . . . . . . . . . . . . Rammed . | . . . . . . . . . . . . . . . . . Targets Rammed . | . . . . . . . . . . . . . . . . . Kicked . | . . . . . . . . . . . . . . . . . Crushed . | . . . . . . . . . . . . . . . . . Highest Temperature 217 | . . 8 78 . . . 8 1 . 4 . 47 88 . . 217 Average Temperature 26 | . . 6 43 . . . 8 1 . 4 . 25 13 . . 118 Received Heat Transfer 531 | . . . 6 . . . 243 . . 27 27 . 30 27 . 171 Siege Activations . | . . . . . . . . . . . . . . . . . Robots Corrupted 1 | . . . . . . . . . . . . . . . . 1 Combat Hostiles 1 | . . . . . . . . . . . . . . . . 1 Parts Fried 1 | . . . . . . . . . . . . . . . . 1 Impact Corruptions 4 | . . . . . . . . . . . . . . . . 4 Robots Melted . | . . . . . . . . . . . . . . . . . Combat Hostiles . | . . . . . . . . . . . . . . . . . Parts Melted . | . . . . . . . . . . . . . . . . . Heat Transferred 407 | . . . 407 . . . . . . . . . . . . . Parts Sabotaged . | . . . . . . . . . . . . . . . . . Parts Stolen . | . . . . . . . . . . . . . . . . . Parts Stripped . | . . . . . . . . . . . . . . . . . Power Chain Reactions 1 | . . 1 . . . . . . . . . . . . . . Alert | -11 -10 -10 -9 -9 -9 -8 -8 -7 -7 -7 -6 -5 -4 -4 -4 -4 ------- Run | Yrd Mat Min Mat Min Exi Min Mat Fac Was Fac Fac Fac Fac Upp Upp War Peak Influence 1003 | . 60 92 190 21 . . 257 257 19 1003 519 325 458 . . . Initial 432 | . . 23 27 21 . . . 116 19 13 432 239 158 . . . Average 224 | . 5 39 85 21 . . 66 127 19 533 430 280 275 . . . Maximum Alert Level 3 | . . . . . . . 1 1 . 3 2 1 2 . . . Low Security (%) 56 | 100 100 100 100 100 . 100 92 83 100 14 . . 31 . . . Level 1 21 | . . . . . . . 7 16 . 28 26 100 57 . . . Level 2 17 | . . . . . . . . . . 22 73 . 11 . . . Level 3 3 | . . . . . . . . . . 34 . . . . . . Level 4 . | . . . . . . . . . . . . . . . . . Level 5 . | . . . . . . . . . . . . . . . . . High Security . | . . . . . . . . . . . . . . . . . Max Security . | . . . . . . . . . . . . . . . . . Squads Dispatched 24 | . . . 1 . . . 2 5 . 8 5 . 3 . . . Investigation 12 | . . . . . . . 1 5 . 2 2 . 2 . . . Extermination 2 | . . . . . . . . . . 1 1 . . . . . Reinforcement 7 | . . . 1 . . . 1 . . 2 2 . 1 . . . Assault . | . . . . . . . . . . . . . . . . . Garrison 3 | . . . . . . . . . . 3 . . . . . . Intercept . | . . . . . . . . . . . . . . . . . Searches Triggered 1 | . . . . . . . . . . . . . 1 . . . Construction Impeded 1 | . . . . . . . . . . 1 . . . . . . Haulers Reinforced . | . . . . . . . . . . . . . . . . . Active Scanning Responses . | . . . . . . . . . . . . . . . . . Cargo Convoy Interrupts . | . . . . . . . . . . . . . . . . . Stealth | -11 -10 -10 -9 -9 -9 -8 -8 -7 -7 -7 -6 -5 -4 -4 -4 -4 --------- Run | Yrd Mat Min Mat Min Exi Min Mat Fac Was Fac Fac Fac Fac Upp Upp War Distress Signals 5 | . 1 . . . . . 1 . . 2 . . 1 . . . Communications Jammed . | . . . . . . . . . . . . . . . . . Distress Signals . | . . . . . . . . . . . . . . . . . Times Spotted 183 | . 7 7 15 2 . 1 29 5 . 8 13 4 27 9 8 48 Peak Tracking Total 14 | . 8 3 5 2 . 1 10 2 . 4 6 4 12 7 4 14 Tactical Retreats 22 | . . 2 1 . . . 6 . . . 3 1 5 4 . . Traps | -11 -10 -10 -9 -9 -9 -8 -8 -7 -7 -7 -6 -5 -4 -4 -4 -4 ------- Run | Yrd Mat Min Mat Min Exi Min Mat Fac Was Fac Fac Fac Fac Upp Upp War Traps Triggered 7 | . . . . . . . . 4 . . 1 . 2 . . . Indirectly . | . . . . . . . . . . . . . . . . . Trap Hack Attempts . | . . . . . . . . . . . . . . . . . Triggered . | . . . . . . . . . . . . . . . . . Disarmed . | . . . . . . . . . . . . . . . . . Reprogrammed . | . . . . . . . . . . . . . . . . . Reused . | . . . . . . . . . . . . . . . . . Traps Extracted . | . . . . . . . . . . . . . . . . . Installed . | . . . . . . . . . . . . . . . . . Triggered 5 | . . . . . . . . . . . . . . . . 5 Machines | -11 -10 -10 -9 -9 -9 -8 -8 -7 -7 -7 -6 -5 -4 -4 -4 -4 ---------- Run | Yrd Mat Min Mat Min Exi Min Mat Fac Was Fac Fac Fac Fac Upp Upp War Machines Disabled 13 | . . . . . . . . . . 12 . . . 1 . . Max in Single Turn 1 | . . . . . . . . . . . . . . 1 . . Machines Repaired . | . . . . . . . . . . . . . . . . . Machines Dismantled . | . . . . . . . . . . . . . . . . . Machines Sabotaged . | . . . . . . . . . . . . . . . . . Overloaded Fab Kills . | . . . . . . . . . . . . . . . . . Hacking | -11 -10 -10 -9 -9 -9 -8 -8 -7 -7 -7 -6 -5 -4 -4 -4 -4 --------- Run | Yrd Mat Min Mat Min Exi Min Mat Fac Was Fac Fac Fac Fac Upp Upp War Machines Accessed 49 | . 2 . 3 . 1 . 2 11 . 6 7 1 6 1 . 9 Terminals 25 | . 2 . 3 . . . 2 5 . 4 5 . 4 . . . Fabricators 7 | . . . . . . . . 3 . 1 2 . 1 . . . Repair Stations 4 | . . . . . . . . 2 . . . 1 1 . . . Recycling Units . | . . . . . . . . . . . . . . . . . Scanalyzers 1 | . . . . . . . . 1 . . . . . . . . Garrison Access 1 | . . . . . . . . . . 1 . . . . . . Total Hacks 136 | . 4 . 12 . 1 . 8 32 . 10 17 2 22 1 . 27 Successful 88 | . 1 . 7 . 1 . 4 20 . 4 6 2 15 1 . 27 Failed 46 | . 3 . 5 . . . 4 10 . 6 11 . 7 . . . Catastrophic 10 | . . . . . . . . . . 3 6 . 1 . . . Database Lockouts 2 | . . . . . . . . 2 . . . . . . . . Manual 55 | . 3 . 10 . 1 . 7 10 . 6 11 . 7 . . . Terminals 77 | . 4 . 12 . . . 8 18 . 7 11 . 17 . . . Fabricators 18 | . . . . . . . . 8 . 2 6 . 2 . . . Repair Stations 8 | . . . . . . . . 3 . . . 2 3 . . . Recycling Units . | . . . . . . . . . . . . . . . . . Scanalyzers 3 | . . . . . . . . 3 . . . . . . . . Garrison Access 1 | . . . . . . . . . . 1 . . . . . . Terminal Hacks 51 | . . . 3 . 1 . 1 6 . 2 1 . 9 1 . 27 Record 34 | . . . 2 . . . . 6 . . . . 5 . . 21 Prototype ID Bank 6 | . . . . . . . . . . . . . 1 . . 5 Open Door 2 | . . . . . . . . . . . . . . 1 . 1 Level Access Points 2 | . . . . . . . . . . 1 . . 1 . . . Branch Access Points 4 | . . . 1 . . . . . . 1 1 . 1 . . . Alert Level 1 | . . . . . . . . . . . . . 1 . . . Locate Traps 1 | . . . . . . . 1 . . . . . . . . . Derelict Proto ID Bank 1 | . . . . . 1 . . . . . . . . . . . Fabricator Hacks 12 | . . . . . . . . 5 . 2 3 . 2 . . . Load Schematic 7 | . . . . . . . . 3 . 1 2 . 1 . . . Build 5 | . . . . . . . . 2 . 1 1 . 1 . . . Repair Station Hacks 7 | . . . . . . . . 3 . . . 2 2 . . . Scan Component 3 | . . . . . . . . 1 . . . 1 1 . . . Repair 3 | . . . . . . . . 1 . . . 1 1 . . . Refit 1 | . . . . . . . . 1 . . . . . . . . Recycling Unit Hacks . | . . . . . . . . . . . . . . . . . Scanalyzer 2 | . . . . . . . . 2 . . . . . . . . Insert Component 1 | . . . . . . . . 1 . . . . . . . . Analyze 1 | . . . . . . . . 1 . . . . . . . . Garrison Access Hacks . | . . . . . . . . . . . . . . . . . Unauthorized Hacks 16 | . 1 . 4 . . . 3 4 . . 2 . 2 . . . Terminals 16 | . 1 . 4 . . . 3 4 . . 2 . 2 . . . Assimilate 3 | . . . 1 . . . 1 1 . . . . . . . . Botnet 13 | . 1 . 3 . . . 2 3 . . 2 . 2 . . . Fabricators . | . . . . . . . . . . . . . . . . . Repair Stations . | . . . . . . . . . . . . . . . . . Recycling Units . | . . . . . . . . . . . . . . . . . Scanalyzers . | . . . . . . . . . . . . . . . . . Garrison Access . | . . . . . . . . . . . . . . . . . Data Cores Recovered . | . . . . . . . . . . . . . . . . . Used . | . . . . . . . . . . . . . . . . . Hacking Detections 32 | . 2 . 2 . . . 2 9 . 4 6 1 6 . . . Full Trace Events 12 | . . . . . . . 1 5 . 2 2 . 2 . . . Feedback Events . | . . . . . . . . . . . . . . . . . Feedback Blocked . | . . . . . . . . . . . . . . . . . Robot Schematics Acquired . | . . . . . . . . . . . . . . . . . Robots Built . | . . . . . . . . . . . . . . . . . Authchips . | . . . . . . . . . . . . . . . . . Time . | . . . . . . . . . . . . . . . . . Total Robot Build Rating . | . . . . . . . . . . . . . . . . . Part Schematics Acquired 1 | . . . . . . . . 1 . . . . . . . . Parts Built 5 | . . . . . . . . 2 . 1 1 . 1 . . . Authchips . | . . . . . . . . . . . . . . . . . Time 536 | . . . . . . . . 201 . 134 67 . 134 . . . Total Part Build Rating 20 | . . . . . . . . 8 . 4 4 . 4 . . . Parts Repaired 3 | . . . . . . . . 1 . . . 1 1 . . . Time 95 | . . . . . . . . 38 . . . 22 35 . . . Parts Recycled . | . . . . . . . . . . . . . . . . . Recycled Matter . | . . . . . . . . . . . . . . . . . Retrieved Matter . | . . . . . . . . . . . . . . . . . Retrieved Components . | . . . . . . . . . . . . . . . . . Parts Scanalyzed 1 | . . . . . . . . 1 . . . . . . . . Part Schematics Acquired 1 | . . . . . . . . 1 . . . . . . . . Parts Damaged . | . . . . . . . . . . . . . . . . . Bothacking | -11 -10 -10 -9 -9 -9 -8 -8 -7 -7 -7 -6 -5 -4 -4 -4 -4 ------------ Run | Yrd Mat Min Mat Min Exi Min Mat Fac Was Fac Fac Fac Fac Upp Upp War Used RIF Installer . | . . . . . . . . . . . . . . . . . Robots Hacked . | . . . . . . . . . . . . . . . . . Non-combat . | . . . . . . . . . . . . . . . . . Combat . | . . . . . . . . . . . . . . . . . Robot Hacks Applied . | . . . . . . . . . . . . . . . . . Relay Couplers Released . | . . . . . . . . . . . . . . . . . Fabnet Peak Effective % . | . . . . . . . . . . . . . . . . . Robots Rewired . | . . . . . . . . . . . . . . . . . Allies Hacked . | . . . . . . . . . . . . . . . . . Hacks Repelled . | . . . . . . . . . . . . . . . . . Allies | -11 -10 -10 -9 -9 -9 -8 -8 -7 -7 -7 -6 -5 -4 -4 -4 -4 -------- Run | Yrd Mat Min Mat Min Exi Min Mat Fac Was Fac Fac Fac Fac Upp Upp War Total Allies 24 | . . . . . . . . 1 20 . . . 3 . . . Largest Group 20 | . . . . . . . . 1 20 20 3 . 3 . . . Highest-Rated Group 508 | . . . . . . . . 10 508 508 91 . 138 . . . Highest-Rated Ally 46 | . . . . . . . . 10 35 35 35 . 46 . . . Total Orders . | . . . . . . . . . . . . . . . . . Ally Attacks 132 | . . . . . . . . . . 112 5 . 15 . . . Total Damage 4060 | . . . . . . . . . . 3195 387 . 478 . . . Kills 36 | . . . . . . . . . . 29 3 . 4 . . . Allies Corrupted . | . . . . . . . . . . . . . . . . . Allies Melted 1 | . . . . . . . . . . . . . . . . 1 Intel | -11 -10 -10 -9 -9 -9 -8 -8 -7 -7 -7 -6 -5 -4 -4 -4 -4 ------- Run | Yrd Mat Min Mat Min Exi Min Mat Fac Was Fac Fac Fac Fac Upp Upp War Robot Analysis Total . | . . . . . . . . . . . . . . . . . Derelict Logs Recovered 5 | . . . . 2 . . . . . . . . . 2 1 . Drone Launches . | . . . . . . . . . . . . . . . . . Drone Recoveries . | . . . . . . . . . . . . . . . . . Exploration | -11 -10 -10 -9 -9 -9 -8 -8 -7 -7 -7 -6 -5 -4 -4 -4 -4 ------------- Run | Yrd Mat Min Mat Min Exi Min Mat Fac Was Fac Fac Fac Fac Upp Upp War Turns Passed 4867 | 22 54 126 452 82 191 123 268 632 107 366 644 102 438 394 156 710 Spaces Moved 8507 | 31 96 192 390 201 454 220 334 1013 321 445 803 296 913 1153 410 1235 Core 301 | 31 96 49 3 . . . 115 1 . . . . . . 1 5 Treads 20 | . . . . . . . . . . . . . . . . 20 Legs . | . . . . . . . . . . . . . . . . . Wheels . | . . . . . . . . . . . . . . . . . Hover . | . . . . . . . . . . . . . . . . . Flight 8186 | . . 143 387 201 454 220 219 1012 321 445 803 296 913 1153 409 1210 Fastest Speed 11 | 50 50 37 37 40 40 40 29 21 30 27 14 11 11 26 29 26 Average Speed 37 | 50 50 42 39 40 40 40 48 33 30 29 69 23 23 28 29 42 Slowest Speed 500 | 50 50 60 100 40 40 40 150 400 30 30 95 24 27 94 150 500 Overloaded Moves 33 | . . . . . . . . 4 . . 1 5 12 4 . 7 Propulsion Burnouts . | . . . . . . . . . . . . . . . . . Robots Hopped 28 | . . . 1 . . 4 3 4 . 2 4 . 6 . . 4 Cave-ins Triggered 1 | . . . . . . . 1 . . . . . . . . . Exploration Rate (%) 45 | 3 24 39 35 38 66 48 52 28 96 14 28 10 29 96 66 94 Regions Visited 16 Branch Regions 7 Pre-discovered Areas 4 | . . . . . . . . . . . . . . 1 1 2 Known Exits Taken 4 | . . . 1 . . 1 . . . 1 . . 1 . . . Unknown Exits Taken 10 | 1 1 1 . 1 1 . 1 . . . 1 1 . 1 1 . Scrap Searched 5 | . . . . . . 2 . . . . . . . 2 1 . Spaces Dug 28 | . . . . . . . 22 . . 2 . . 4 . . . Terrain Destroyed 42 | . . 14 . . . . 22 . . 2 . . 4 . . . Melee 28 | . . . . . . . 22 . . 2 . . 4 . . . Projectile . | . . . . . . . . . . . . . . . . . AOE 14 | . . 14 . . . . . . . . . . . . . . Terrain Rammed . | . . . . . . . . . . . . . . . . . Walls Destroyed . | . . . . . . . . . . . . . . . . . Machines Disabled . | . . . . . . . . . . . . . . . . . Actions | -11 -10 -10 -9 -9 -9 -8 -8 -7 -7 -7 -6 -5 -4 -4 -4 -4 --------- Run | Yrd Mat Min Mat Min Exi Min Mat Fac Was Fac Fac Fac Fac Upp Upp War Total 9986 | 37 101 227 667 201 465 249 405 1296 330 671 883 326 1102 1188 433 1405 Wait 1110 | . . 7 239 . . 32 18 215 10 223 51 22 150 11 5 127 Move 8439 | 30 95 191 387 200 453 211 328 1005 320 440 794 295 900 1152 409 1229 Hop 25 | . . . 1 . . 4 2 4 . 2 4 . 6 . . 2 Pick Up 85 | 4 4 4 8 1 2 1 12 13 . . 8 5 3 3 4 13 Fast Attach 22 | . . 6 2 . 1 . . 5 . . . . 1 . . 7 Attach 62 | 3 2 4 9 . 2 . 9 6 . . 8 3 4 3 2 7 Detach 14 | . . 3 1 . . . . 2 . . 4 . 1 . 1 2 Swap 22 | . . 1 3 . . 1 2 9 . 1 3 1 1 . . . Drop 48 | . . 2 4 . 7 . 2 12 . 1 6 . 2 1 3 8 Fire 22 | . . 9 13 . . . . . . . . . . . . . Melee 99 | . . . . . . . 32 5 . 4 5 . 16 18 9 10 Ram . | . . . . . . . . . . . . . . . . . Kick . | . . . . . . . . . . . . . . . . . Crush . | . . . . . . . . . . . . . . . . . Escape Stasis 38 | . . . . . . . . 20 . . . . 18 . . . Rewire . | . . . . . . . . . . . . . . . . . Trap . | . . . . . . . . . . . . . . . . . Miscellaneous . | . . . . . . . . . . . . . . . . . Route ------- -11/Scrapyard -10/Materials -10/Mines -9/Materials (discovered 3 exits: *Mat / *Min x2) -9/Mines (discovered 3 exits: *Mat x2 / *Exi) -9/Exiles -8/Mines -8/Materials -7/Factory (discovered 2 exits: *Fac / *Low) -7/Waste -7/Factory (discovered 8 exits: *Fac x4 / Sto x2 / *Low x2) -6/Factory (discovered 4 exits: *Fac x2 / Low x2) -5/Factory -4/Factory (discovered 7 exits: Res x4 / *Upp x2 / *Arm) -4/Upper Caves -4/Upper Caves (discovered 2 exits: *Res / *War) -4/Warlord (discovered 1 exit: [*Pro]) History --------- Turn | Location | Event 2 | -11/Scrapyard | Met Revision 17 5 | -11/Scrapyard | Discovered new exit (range 15) 23 | -11/Scrapyard | Entered Materials 63 | -10/Materials | Discovered new exit (range 9) 77 | -10/Materials | Entered Mines 86 | -10/Mines | YI-UF0 nonchalantly dropped a Grenade Launcher on the ground 130 | -10/Mines | Found a damaged Exp. Sensor Array with a note attached 131 | -10/Mines | Found Prototype Device 135 | -10/Mines | Discovered new exit (range 12) 203 | -10/Mines | Entered Materials 203 | -9/Materials | Evolved 2 slots: Utility x2 204 | -9/Materials | Identified Exp. Sensor Array 216 | -9/Materials | Lost 4 parts (1p2n1w) 294 | -9/Materials | Identified exit to Mines 319 | -9/Materials | Build established: Mutant 634 | -9/Materials | Discovered new exit (range 17) 655 | -9/Materials | Entered Mines 658 | -9/Mines | Learned Materials terminal intel 668 | -9/Mines | Received a Rocket Launcher from a helpful Derelict 689 | -9/Mines | Deemed a non-threat by the Exiles lab entrance 689 | -9/Mines | Discovered new exit (range 5) 702 | -9/Mines | Discovered new exit (range 8) 713 | -9/Mines | Identified exit to Materials 737 | -9/Mines | Entered Exiles 743 | -9/Exiles | Discovered new exit (range 16) 747 | -9/Exiles | Met 8R-AWN 754 | -9/Exiles | Met EX-HEX 784 | -9/Exiles | Met EX-DEC 808 | -9/Exiles | Met EX-BIN 815 | -9/Exiles | Aligned with FarCom system 816 | -9/Exiles | Given EX-Vault access code 825 | -9/Exiles | Opened EX-Vault 827 | -9/Exiles | Found Prototype Processor 830 | -9/Exiles | Identified 0b10 Alert Chip 832 | -9/Exiles | Found Prototype Slashing Weapon 836 | -9/Exiles | Identified Longsword +1 845 | -9/Exiles | Warned to stay clear of 0b10 Research branches 928 | -9/Exiles | Left Exiles lab with Longsword +1 928 | -9/Exiles | Entered Mines 1010 | -8/Mines | Discovered exit to Materials (range 14) 1051 | -8/Mines | Entered Materials 1051 | -8/Materials | Evolved 2 slots: Propulsion x1, Utility x1 1052 | -8/Materials | Loaded intel: 12 terminal locations 1208 | -8/Materials | Core integrity fell below 50% 1232 | -8/Materials | Lost 6 parts (2p4n) 1287 | -8/Materials | Crushed by falling debris 1287 | -8/Materials | Core integrity fell below 20% 1312 | -8/Materials | Discovered new exit (range 15) 1319 | -8/Materials | Entered Factory 1319 | -7/Factory | Evolved 2 slots: Propulsion x1, Utility x1 1367 | -7/Factory | Discovered new exit (range 14) 1370 | -7/Factory | Discovered new exit (range 19) 1582 | -7/Factory | Central database locked down 1593 | -7/Factory | Central database locked down 1665 | -7/Factory | Fabricated Cld. VTOL Module? 1828 | -7/Factory | Fabricated Cld. VTOL Module? 1886 | -7/Factory | Repaired Adv. Weight Redist. System 1951 | -7/Factory | Sucked down chute 1951 | -7/Factory | Entered Waste 1952 | -7/Waste | Joined by Warlord forces that had cleared the area 1993 | -7/Waste | Discovered new exit (range 16) 2058 | -7/Waste | Entered Factory 2058 | -7/Factory | Accompanied by 20 allies 2077 | -7/Factory | Garrison activated, responded to threat 2190 | -7/Factory | Build established: Sprinter 2203 | -7/Factory | Fabricated Cld. VTOL Module (x1) 2243 | -7/Factory | Lost 6 allies 2270 | -7/Factory | Identified exit to Storage 2270 | -7/Factory | Identified exit to Lower Caves 2290 | -7/Factory | Identified exit to Factory 2424 | -7/Factory | Entered another Factory area 2424 | -6/Factory | Accompanied by 3 allies 2424 | -6/Factory | Evolved 2 slots: Power x1, Weapon x1 2452 | -6/Factory | Lost 5 allies 2592 | -6/Factory | Fabricated Cld. VTOL Module (x1) 2669 | -6/Factory | Lost 3 allies 2901 | -6/Factory | Build established: Machinist-Gladiator 3056 | -6/Factory | Identified exit to Lower Caves 3058 | -6/Factory | Discovered new exit (range 15) 3058 | -6/Factory | Discovered new exit (range 5) 3068 | -6/Factory | Entered another Factory area 3068 | -5/Factory | Evolved 2 slots: Propulsion x1, Weapon x1 3111 | -5/Factory | Repaired Greatsword 3153 | -5/Factory | Discovered new exit (range 13) 3170 | -5/Factory | Entered another Factory area 3170 | -4/Factory | Evolved 2 slots: Utility x1, Weapon x1 3261 | -4/Factory | Allied Derelicts emerged from ambush trap array 3304 | -4/Factory | Repaired Cld. VTOL Module 3370 | -4/Factory | Identified exit to Research 3370 | -4/Factory | Identified exit to Upper Caves 3370 | -4/Factory | Identified exit to Armory 3420 | -4/Factory | Search patrols dispatched 3533 | -4/Factory | Fabricated Cld. VTOL Module? 3608 | -4/Factory | Entered Upper Caves 3609 | -4/Upper Caves | Encountered a Warlord checkpoint 3635 | -4/Upper Caves | Attracted the attention of an 0b10 checkpoint 3659 | -4/Upper Caves | Lost 3 parts (1n1u1w) 3745 | -4/Upper Caves | Discovered new exit (range 8) 3751 | -4/Upper Caves | Attacked by a delusional Derelict stockpiling Unaware 3799 | -4/Upper Caves | Learned Research emergency access door positions 3902 | -4/Upper Caves | Build established: Sprinter 3908 | -4/Upper Caves | Lost 3 parts (1n2u) 3915 | -4/Upper Caves | Attracted the attention of an 0b10 outpost 4002 | -4/Upper Caves | Entered another Upper Caves area 4033 | -4/Upper Caves | Discovered exit to Research (range 9) 4080 | -4/Upper Caves | Spotted B-86 Titan 4150 | -4/Upper Caves | Discovered new exit (range 10) 4156 | -4/Upper Caves | Learned location of Testing (-2) 4158 | -4/Upper Caves | Entered Warlord 4171 | -4/Warlord | Discovered new exit (range 9) 4374 | -4/Warlord | Warlord's base attacked by MAIN.C 4375 | -4/Warlord | Learned 4 Quarantine zone layouts 4375 | -4/Warlord | Learned location of Armory (-4) 4376 | -4/Warlord | Learned Research garrison access intel 4376 | -4/Warlord | Learned Research scanalyzer intel 4376 | -4/Warlord | Learned Armory scanalyzer intel 4386 | -4/Warlord | Met Warlord 4395 | -4/Warlord | Found Prototype Device 4396 | -4/Warlord | Identified Minesniffer Drone Bay 4445 | -4/Warlord | Found Prototype Piercing Weapon 4447 | -4/Warlord | Found Prototype Piercing Weapon 4448 | -4/Warlord | Identified Vortex Lance (x2) 4533 | -4/Warlord | Spotted B-86 Titan 4567 | -4/Warlord | Lost 3 allies 4621 | -4/Warlord | Spotted B-90 Cyclops 4672 | -4/Warlord | Warlord forces counterattacked 4690 | -4/Warlord | Lost 5 allies 4709 | -4/Warlord | Spotted B-90 Cyclops 4747 | -4/Warlord | Lost 3 parts (2n1u) 4750 | -4/Warlord | Lost 4 allies 4750 | -4/Warlord | Spotted Executioner 4780 | -4/Warlord | Spotted Executioner 4805 | -4/Warlord | Spotted B-90 Cyclops 4811 | -4/Warlord | Core integrity fell below 50% 4812 | -4/Warlord | Spotted B-86 Titan 4816 | -4/Warlord | P-70 Sage assimilated allied HV-WWG(g) 4854 | -4/Warlord | Core integrity fell below 20% 4868 | -4/Warlord | Destroyed by B-86 Titan with Matter Neutralizer Last Messages --------------- 04858_ Critical hit (Destroy). 04859_ Slug penetrates B-90 Cyclops. 04859_ Penetrated by Slug. 04859_ Critical hit (Destroy). 04860_ H-77 Assassin suffers critical hit (Destroy). 04861_ Acquired Flexi-carbon Leg. 04862_ Penetrated by Slug. 04862_ Acquired 35 matter. 04862_ Slug penetrates Earth. 04862_ Scythe destroyed. 04862_ Hrd. Heavy Armor Plating destroyed. 04863_ Arm. Medium Treads destroyed. 04863_ Vortex Lance destroyed. 04863_ Power Sword destroyed. 04864_ ANNOUNCEMENT: MAIN.C reinforcements approaching through caves, arriving soon. 04865_ Penetrated by Slug. 04865_ Slug penetrates Wall. 04866_ Penetrated by Slug. [Achievement: 10k Club] Map ----- +----------------------------------------------------+ | ##+######## ### #????????????????## ##???????? | | #???????????????## #???????# | | #???????????????# #??????## | | #####+####+#### #???????????????# ##?????## | | ## #??## ###???????????????# #?????# | | # #???# #?????????????????# ##????# | | # #???# #?????????????????## #????# | | # #???# #??????????????????### ##????# | | # #???# #????????????????????## #?????# | | # #???# #?????????????????????## #???### | | # #???# #??????????????????????# ##### | | ## #???# #??????????????????????# | | ############???# #??????????????????????## ### | | # #??### #??????""???????????????## # | | # "" "" #??# ##????#""#???????????????### # | | # "" "" #### #????#""#?????????????????# | | # """ """ # ;%! ##????#""##????????????????## | | # """ """ #?#;*==####??#""!#????##???????????## | | # "" "" ###;%*%%#;####""*#####!###?##???????## | | # "" "" # !*[*=%*%[*""!!=*#%!;;## ####?????## | | # #% %=!!!![%=%""!%*[==*= =%" "#??????## | | ########+# %!=%!%=!!%""%%=[[!=%% !=! "#?####?## | | ?????# BB !!%[%^=!=hh[%=!%%=%=![%=[### ### | | ###### BB*%==!%[=*=!h%%%[===% =%|[%/ % | | # %!% %% [!=![!!%BB%%%%[![%% " | | # =%= != *!=^ %=@BB=%%*%=%=%! =%#### # | | [[ # !%= =!/!%/BB%!!!=%!!! [#??## # | | / [ # ![ !! %*%%""BB%*%!=!| "#???# # | | + # !%! =%%[""!*=!! #; ###???# ## | | # " != ;##;#""*|[ ####????## #? | | ###+## ### ##""### # ####??????## #? | | ??# #### ##?# ?#""#??###?#?????????# ##? | | ??# #??# #??##?#""#???????????????## ##?? | | ??# #??# ##????#""#???????????????# #??? | | ??# #### #????#""????????????????# #??? | | ??# #???????????????????????# ##??? | | ??# #???????????????????????# #???? | | ??# #??????????????????????## ##??? | | ??# """ """ #?????????????????????## ##?? | | ??# """ """ #?????????????????????# ##? | | ??# """ """ #?????????????????##### ## ## | | ??# #####????????????## # #### # | | ??# ##???????????# #?## # | | ??#######+##### #???????????# #??# | | ????# # ##???????????# ## #?## | | ????# """ """ + #????????????###### #??### | | ????# """ """ #######+####?????????????? ##????# | | ????# """ """ #?????# #??????????????####?????? | | ????# """ """ #?????# #???????????????????????? | | ????# """ """ #?????# #???????????????????????? | +----------------------------------------------------+ Best States ------------- Heat Dissipation 43 Energy Generation 48 Energy Capacity 520 Matter Stores 300 Matter Capacity 300 Sight Range 20 Robot Scan Range 20 Terrain Scan Density 10 ECM Strength 2 Additional Mass Support 9 Armor Coverage 600 Weapon Shielding 66 Melee Speed Boost 20 Evasion (%) 76 Targeting Accuracy 18 Melee Accuracy 20 Target Analysis 8 Recoil Reduction 2 Force Boost 20 Offensive Hacking 10 Item Schematics ----------------- Cld. VTOL Module | -7/Factory | Scanalyzed Robot Schematics ------------------ None Fabricated ------------ Cld. VTOL Module | x1 | -7/Factory Cld. VTOL Module | x1 | -7/Factory Cld. VTOL Module | x1 | -7/Factory Cld. VTOL Module | x1 | -6/Factory Cld. VTOL Module | x1 | -4/Factory Alien Tech Used ----------------- None Achievements -------------- 10k Club A Powerful Ally? Deadly Force Dodgeball, But With Guns Party Time We Are Legion Whoosh! root@ Challenges ------------ None Game ------ Seed RecoilDispersionWartreads Manual? 0 Play Time 02:41:19 Cumulative 7.6 hours Start 2024.10.13 @ 19:56:44 End 2024.10.13 @ 22:42:01 Sessions 1 Manual Loads 0 Difficulty Rogue Special Mode None Game No. 6 Rogue 6 Adventurer 0 Explorer 0 Win Type - Total 0 Types 0/0/0/0/0/0/0/0/0 Lore% 12 Gallery% 11 Achievement% 24 Wizard Run 0 Options --------- Layout 0 ASCII 0 Keyboard 0 Movement Mouse Keybinds 0 Fullscreen 2 Font 18/SmallcapsGlow Map View 76x50 Zoom Use 0% Tactical HUD 1 Map Filters NONE Filters NONE Steam 1 RUN: 27e999ba-0f0d-4f49-90f0-a27fc5b9b0cd